[Event "German Bundesliga 2021-22"]
[Site "Germany"]
[Date "2022.04.30"]
[Round "5.13"]
[White "Svane, Frederik"]
[Black "Fedorchuk, Sergey A."]
[Result "1/2-1/2"]
[ECO "B31"]
[WhiteElo "2496"]
[BlackElo "2605"]
[Annotator "TA"]
[PlyCount "301"]
[EventDate "2022.03.05"]
[EventType "team-tourn"]
[EventCountry "GER"]
[SourceTitle "playchess.com"]
[Source "ChessBase"]
[SourceQuality "1"]
[TimeControl "40/5400+30:1800+30"]

{[%evp 170,301,81,16,81,11,81,81,81,81,81,81,81,11,81,81,81,11,11,11,26,16,81,81,81,81,81,81,81,81,81,81,81,0,81,81,81,0,103,0,81,81,103,81,81,81,103,103,103,81,81,81,81,15,81,81,81,30,30,30,81,0,30,30,81,80,80,0,80,80,80,80,80,80,80,80,81,80,81,80,80,80,80,80,80,0,0,0,0,0,0,0,0,0,0,0,0,0,0,0,0,0,0,0,0,0,0,0,0,0,0,0,0,0,0,0,0,0,0,0,0,0,0,0,0,0,0,0,0,0,0,0,0,0]} 1. e4 {[%emt 1:26:39]} c5 {[%emt 1:28:51]} 2. Nf3 {[%emt 0:00:30]} Nc6 {[%emt 0:00:30]} 3. Bb5 {[%emt 0:00:30]} g6 {[%emt 0:00:30]} 4. O-O {[%emt 0:00:30]} Bg7 {[%emt 0:00:30]} 5. Re1 {[%emt 0:00:30]} e5 {[%emt 0:00:30]} 6. Bxc6 {[%emt 0:00:30]} dxc6 {[%emt 0:00:30]} 7. d3 {[%emt 0:00:30]} Qc7 {[%emt 0:00:30]} 8. Be3 {[%emt 0:00:30]} b6 {[%emt 0:00:30]} 9. a3 {[%emt 0:00:30]} a5 {[%emt 0:00:30]} 10. Nbd2 {[%emt 0:00:30]} a4 {[%emt 0:00:30]} 11. b4 {[%emt 0:00:30]} axb3 {[%emt 0:00:30]} 12. cxb3 {[%emt 0:00:30]} Nf6 {[%emt 0:00:30]} 13. Nc4 {[%emt 0:00:30]} Ng4 {[%emt 0:00:30]} 14. Bd2 {[%emt 0:00:30]} Be6 {[%emt 0:00:30]} 15. Qc2 {[%emt 0:00:30]} O-O {[%emt 0:00:30]} 16. h3 {[%emt 0:00:30]} Bxc4 {[%emt 0:00:30]} 17. Qxc4 {[%emt 0:00:30]} Nf6 {[%emt 0:00:30]} 18. a4 {[%emt 0:00:30]} Nd7 {[%emt 0:00:30]} 19. Rec1 {[%emt 0:00:30]} Rfd8 {[%emt 0:00:30]} 20. Bg5 {[%emt 0:00:30]} Rdb8 {[%emt 0:00:30]} 21. Be3 {[%emt 0:00:30]} Qd6 {[%emt 0:00:30]} 22. Qc3 {[%emt 0:00:30]} Bf8 {[%emt 0:00:30]} 23. a5 {[%emt 0:00:30]} b5 {[%emt 0:00:30]} 24. b4 {[%emt 0:00:30]} cxb4 {[%emt 0:00:30]} 25. Qxc6 {[%emt 0:00:30]} b3 {[%emt 0:00:30]} 26. Qc3 {[%emt 0:00:30]} Qb4 {[%emt 0:00:30]} 27. Qb2 {[%emt 0:00:30]} Nc5 {[%emt 0:00:30]} 28. Bxc5 {[%emt 0:00:30]} Bxc5 {[%emt 0:00:30]} 29. Rc3 {[%emt 0:00:30]} Rxa5 {[%emt 0:00:30]} 30. Rxa5 {[%emt 0:00:30]} Bd4 {[%emt 0:00:30]} 31. Rxb3 {[%emt 0:00:30]} Qxa5 {[%emt 0:00:30]} 32. Nxd4 {[%emt 0:00:30]} exd4 {[%emt 0:00:30]} 33. Qxd4 {[%emt 0:00:30]} b4 {[%emt 0:00:30]} 34. Qc4 {[%emt 0:00:30]} Qa1+ {[%emt 0:00:30]} 35. Kh2 {[%emt 0:00:30]} Qe5+ {[%emt 0:00:30]} 36. g3 {[%emt 0:00:30]} Qe7 {[%emt 0:00:30]} 37. Kg2 {[%emt 0:00:30]} h5 {[%emt 0:00:30]} 38. h4 {[%emt 0:00:30]} Kh7 {[%emt 0:00:30]} 39. Rb2 {[%emt 0:00:30]} Qb7 {[%emt 0:00:30]} 40. Rb3 {[%emt 0:00:30]} Qe7 {[%emt 0:00:30]} 41. Kf3 {[%emt 0:30:30]} Qb7 {[%emt 0:30:30]} 42. Ke3 {[%emt 0:00:30]} Kh6 {[%emt 0:00:30]} 43. Qc5 {[%emt 0:00:30]} Kh7 {[%emt 0:00:30]} 44. d4 {[%emt 0:00:30]} Qa6 {[%emt 0:00:30]} 45. Qc2 {[%emt 0:00:30]} Qb5 {[%emt 0:00:30]} 46. Qd3 {[%emt 0:00:30]} Qc6 {[%emt 0:00:30]} 47. Rb1 {[%emt 0:00:30]} Rb7 {[%emt 0:00:30]} 48. d5 {[%emt 0:00:30]} Qd6 {[%emt 0:00:30]} 49. Qd4 {[%emt 0:00:30]} b3 {[%emt 0:00:30]} 50. Qc3 {[%emt 0:00:30]} Qb6+ {[%emt 0:00:30]} 51. Kf3 {[%emt 0:00:30]} b2 {[%emt 0:00:30]} 52. Kg2 {[%emt 0:00:30]} Qb4 {[%emt 0:00:30]} 53. Qxb4 {[%emt 0:00:30]} Rxb4 {[%emt 0:00:30]} 54. Kf3 {[%emt 0:00:30]} Kg7 {[%emt 0:00:30]} 55. Ke3 {[%emt 0:00:30]} f5 {[%emt 0:00:30]} 56. exf5 {[%emt 0:00:30]} gxf5 {[%emt 0:00:30]} 57. Kd3 {[%emt 0:00:30]} Kf6 {[%emt 0:00:30]} 58. Kc3 {[%emt 0:00:30]} Rb5 {[%emt 0:00:30]} 59. Rxb2 {[%emt 0:00:30]} Rxd5 {[%emt 0:00:30]} 60. Rb6+ {[%emt 0:00:30]} Kg7 {[%emt 0:00:30]} 61. Rb4 {[%emt 0:00:30]} Rd1 {[%emt 0:00:30]} 62. Rd4 {[%emt 0:00:30]} Rf1 {[%emt 0:00:30]} 63. Rf4 {[%emt 0:00:30]} Kf6 {[%emt 0:00:30]} 64. Kd2 {[%emt 0:00:30]} Ra1 {[%emt 0:00:30]} 65. Rb4 {[%emt 0:00:30]} Ra3 {[%emt 0:00:30]} 66. Rb8 {[%emt 0:00:30]} Kg7 {[%emt 0:00:30]} 67. Rb4 {[%emt 0:00:30]} Kf6 {[%emt 0:00:30]} 68. Ke2 {[%emt 0:00:30]} Kg6 {[%emt 0:00:30]} 69. Rd4 {[%emt 0:00:30]} Rb3 {[%emt 0:00:30]} 70. Rd3 {[%emt 0:00:30]} Rb4 {[%emt 0:00:30]} 71. Rd6+ {[%emt 0:00:30]} Kg7 {[%emt 0:00:30]} 72. Ke3 {[%emt 0:00:30]} Re4+ {[%emt 0:00:30]} 73. Kd3 {[%emt 0:00:30]} Re1 {[%emt 0:00:30]} 74. Rd4 {[%emt 0:00:30]} Kf6 {[%emt 0:00:30]} 75. Rc4 {[%emt 0:00:30]} Re6 {[%emt 0:00:30]} 76. Rc8 {[%emt 0:00:30]} Kg7 {[%emt 0:00:30]} 77. Rc3 {[%emt 0:00:30]} Kf6 {[%emt 0:00:30]} 78. Kd2 {[%emt 0:00:30]} Re4 {[%emt 0:00:30]} 79. Re3 {[%emt 0:00:30]} Ra4 {[%emt 0:00:30]} 80. Re8 {[%emt 0:00:30]} Kg7 {[%emt 0:00:30]} 81. Ke3 {[%emt 0:00:30]} Rb4 {[%emt 0:00:30]} 82. Rd8 {[%emt 0:00:30]} Re4+ {[%emt 0:00:30]} 83. Kd3 {[%emt 0:00:30]} Re1 {[%emt 0:00:30]} 84. Rc8 {[%emt 0:00:30]} Re4 {[%emt 0:00:30]} 85. Rc4 {[%emt 0:00:30]} Re1 {[%emt 0:00:30]} 86. Rc3 {[%emt 0:00:30]} (86. Rc7+ $16 Kf6 87. Rc6+ Kg7 88. Rc5) 86... Kf6 {[%emt 0:00:30]} (86... f4 $1 $11) 87. Rc2 {[%emt 0:00:30]} (87. Rc6+ $16 Kg7 88. Rc5) 87... Re4 {[%emt 0:00:30]} (87... f4 $1 $11) 88. Rb2 {[%emt 0:00:30]} Ra4 {[%emt 0:00:30]} 89. Rb6+ {[%emt 0:00:30]} Kg7 {[%emt 0:00:30]} 90. Rb5 {[%emt 0:00:30]} Kf6 {[%emt 0:00:30]} 91. Rc5 {[%emt 0:00:30]} ({Better is} 91. Ke3 $16) 91... Re4 {[%emt 0:00:30]} (91... f4 $11) 92. Rc2 {[%emt 0:00:30]} Kg6 {[%emt 0:00:30]} 93. Re2 {[%emt 0:00:30]} ({White should play} 93. Ra2 $16) 93... Ra4 $11 {[%emt 0:00:30]} 94. Re6+ {[%emt 0:00:30]} Kg7 {[%emt 0:00:30]} 95. Ke3 {[%emt 0:00:30]} Rb4 {[%emt 0:00:30]} (95... f4+ $1 $11 96. gxf4 Ra3+ 97. Ke4 Rh3) 96. f3 {[%emt 0:00:30]} Ra4 {[%emt 0:00:30]} 97. Rd6 {[%emt 0:00:30]} Rb4 {[%emt 0:00:30]} 98. Rd4 {[%emt 0:00:30]} Rb6 {[%emt 0:00:30]} 99. Rd5 {[%emt 0:00:30]} Kf6 {[%emt 0:00:30]} 100. Rd8 {[%emt 0:00:30]} Rb3+ {[%emt 0:00:30]} 101. Rd3 {[%emt 0:00:30]} (101. Kf2 $16) 101... Rb4 {[%emt 0:00:30]} (101... Rxd3+ $1 $11 102. Kxd3 Ke7) 102. Rc3 {[%emt 0:00:30]} Ra4 {[%emt 0:00:30]} 103. Kd3 {[%emt 0:00:30]} (103. Rc6+ $16 Ke5 104. Rc3 (104. Rc5+ Kf6 $16)) 103... Kg6 {[%emt 0:00:30]} (103... f4 $1 $11) 104. Ke3 {[%emt 0:00:30]} Kf6 $1 {[%emt 0:00:30]} 105. Rb3 {[%emt 0:00:30]} Kg6 {[%emt 0:00:30]} 106. Rd3 {[%emt 0:00:30]} Kf6 {[%emt 0:00:30]} 107. Rd6+ {[%emt 0:00:30]} Kg7 {[%emt 0:00:30]} 108. Rc6 {[%emt 0:00:30]} Rb4 {[%emt 0:00:30]} 109. Ra6 {[%emt 0:00:30]} Rc4 {[%emt 0:00:30]} 110. Kd3 {[%emt 0:00:30]} Rb4 {[%emt 0:00:30]} 111. Ra3 {[%emt 0:00:30]} (111. Ra5 $16) 111... Kf6 {[%emt 0:00:30]} (111... f4 $11 {keeps the balance.}) 112. Kc3 {[%emt 0:00:30]} Rb6 {[%emt 0:00:30]} 113. Ra8 {[%emt 0:00:30]} (113. Kd2 $16) 113... Kg7 $1 $11 {[%emt 0:00:30]} 114. Ra7+ {[%emt 0:00:30]} Kg6 {[%emt 0:00:30]} (114... Kh6 $11) 115. Ra8 {[%emt 0:00:30]} (115. f4 $16) 115... Kg7 $11 {[%emt 0:00:30]} 116. Ra5 {[%emt 0:00:30]} Kf6 {[%emt 0:00:30]} (116... Rg6 $1 $11) 117. Kc4 {[%emt 0:00:30]} Rd6 {[%emt 0:00:30]} 118. Ra3 {[%emt 0:00:30]} (118. f4 $16) 118... Rd1 {[%emt 0:00:30]} (118... f4 $1 $11 {remains equal.}) 119. Ra6+ $16 {[%emt 0:00:30]} Kg7 {[%emt 0:00:30] [#]} 120. f4 $1 {[%emt 0:00:30]} Rg1 {[%emt 0:00:30]} 121. Ra3 {[%emt 0:00:30]} Kf6 {[%emt 0:00:30]} 122. Kd4 {[%emt 0:00:30]} Rd1+ {[%emt 0:00:30]} 123. Rd3 {[%emt 0:00:30]} Ra1 {[%emt 0:00:30]} 124. Kc5 {[%emt 0:00:30]} Ra5+ {[%emt 0:00:30]} 125. Kc6 {[%emt 0:00:30]} Ra6+ {[%emt 0:00:30]} 126. Kd7 {[%emt 0:00:30]} Ra7+ {[%emt 0:00:30] [#]} 127. Ke8 {[%emt 0:00:30]} (127. Kd6 $1 $16) 127... Ra8+ $11 {[%emt 0:00:30]} 128. Rd8 {[%emt 0:00:30]} Ra3 {[%emt 0:00:30]} 129. Kf8 {[%emt 0:00:30]} Ra6 {[%emt 0:00:30]} 130. Kg8 {[%emt 0:00:30]} Kg6 {[%emt 0:00:30]} 131. Kf8 {[%emt 0:00:30]} Kf6 {[%emt 0:00:30]} 132. Ke8 {[%emt 0:00:30]} Ke6 {[%emt 0:00:30]} 133. Rb8 {[%emt 0:00:30]} Rc6 {[%emt 0:00:30]} 134. Kd8 {[%emt 0:00:30]} Rc3 {[%emt 0:00:30]} 135. Rb6+ {[%emt 0:00:30]} Kf7 {[%emt 0:00:30]} 136. Rh6 {[%emt 0:00:30]} Rxg3 {[%emt 0:00:30]} 137. Rxh5 {[%emt 0:00:30]} Rd3+ {[%emt 0:00:30]} 138. Kc7 {[%emt 0:00:30]} Kg6 {[%emt 0:00:30]} 139. Rg5+ {[%emt 0:00:30]} Kf6 {[%emt 0:00:30]} 140. h5 {[%emt 0:00:30]} Rf3 {[%emt 0:00:30]} 141. h6 {[%emt 0:00:30]} Rh3 {[%emt 0:00:30]} 142. Kd6 {[%emt 0:00:30]} Rxh6 {[%emt 0:00:30]} 143. Rg3 {[%emt 0:00:30]} Rh1 {[%emt 0:00:30]} 144. Rf3 {[%emt 0:00:30]} Re1 {[%emt 0:00:30]} 145. Kd5 {[%emt 0:00:30]} Re4 {[%emt 0:00:30]} 146. Rf1 {[%emt 0:00:30]} Kg6 {[%emt 0:00:30]} 147. Rg1+ {[%emt 0:00:30]} Kf6 {[%emt 0:00:30]} 148. Rf1 {[%emt 0:00:30]} Kg6 {[%emt 0:00:30]} 149. Rg1+ $1 {[%emt 0:00:30]} Kf6 {[%emt 0:00:30]} 150. Rf1 {[%emt 0:00:57]} Kg6 {[%emt 0:00:17]} 151. Rg1+ {[%emt 0:00:00]} 1/2-1/2

[Event "German Bundesliga 2021-22"]
[Site "Germany"]
[Date "2022.04.30"]
[Round "5.13"]
[White "Boensch, Uwe"]
[Black "Berchtenbreiter, Maximilian"]
[Result "1-0"]
[ECO "A43"]
[WhiteElo "2494"]
[BlackElo "2506"]
[Annotator "TA"]
[PlyCount "59"]
[EventDate "2022.03.05"]
[EventType "team-tourn"]
[EventCountry "GER"]
[SourceTitle "playchess.com"]
[Source "ChessBase"]
[SourceQuality "1"]
[TimeControl "40/5400+30:1800+30"]

{[%evp 9,59,35,45,54,53,35,71,8,39,0,59,57,62,61,73,55,62,46,42,35,56,60,64,64,64,64,58,53,31,31,101,118,99,70,125,68,231,183,352,362,351,345,346,320,330,239,758,740,716,682,29995,29996]} 1. d4 {[%emt 0:00:00]} g6 {[%emt 0:00:00]} 2. c4 {[%emt 0:00:00]} Bg7 {[%emt 0:00:00]} 3. e4 {[%emt 0:00:00]} c5 {[%emt 0:00:00]} 4. d5 {[%emt 0:00:00]} d6 {[%emt 0:00:00]} 5. Bd3 {[%emt 0:00:00]} e6 {[%emt 0:00:00]} 6. Nf3 {[%emt 0:00:00] A43: Schmid Benoni.} exd5 {[%emt 0:00:00]} 7. cxd5 {[%emt 0:00:00]} (7. exd5 {is more complex.} Bg4 8. O-O Nd7 9. Nbd2) 7... Bg4 {[%emt 0:00:00]} 8. Nbd2 {[%emt 0:00:00]} (8. Qa4+ $16 Nd7 9. Nfd2) 8... Nd7 {[%emt 0:00:00]} 9. O-O {[%emt 0:03:38]} Ne7 {[%emt 0:04:30]} (9... Ngf6 $11) 10. h3 $14 {[%emt 0:01:08]} Bxf3 {[%emt 0:00:07]} 11. Nxf3 {[%emt 0:00:05]} O-O {[%emt 0:00:36]} 12. Rb1 {[%emt 0:00:22] [#]} Rc8 $146 {[%emt 0:16:26]} ({Predecessor:} 12... h6 13. Re1 g5 14. Nh2 Ne5 15. Nf1 f5 16. exf5 Nxf5 17. Bxf5 Rxf5 18. Ne3 Rf7 {0-1 (53) Livner,A (2324)-Gdanski,J (2542) Sweden 2010}) 13. Bc4 {[%emt 0:04:31]} a6 {[%emt 0:02:36]} 14. a4 {[%emt 0:00:48][%cal Ba2a4,Ba4a5,Ba5b6,Bb6b7][%mdl 32]} Rb8 {[%emt 0:00:07]} 15. Qd3 {[%emt 0:04:12]} Nc8 {[%emt 0:08:02]} 16. Bd2 {[%emt 0:01:14]} Ncb6 {[%emt 0:08:01]} 17. b3 {[%emt 0:01:44]} Re8 {[%emt 0:00:03]} 18. a5 {[%emt 0:01:48]} Nxc4 {[%emt 0:02:09]} 19. bxc4 {[%emt 0:00:16]} b6 {[%emt 0:03:20]} (19... Qe7 $14) 20. axb6 $16 {[%emt 0:01:03]} Qe7 {[%emt 0:01:20]} 21. b7 {[%emt 0:04:47] [#] Strongly threatening Qb3.} Nf6 {[%emt 0:04:53]} (21... Ne5 $1 $14 22. Nxe5 Bxe5) 22. Qb3 {[%emt 0:32:50] White is much more active.} (22. Rfe1 $16 {Hoping for e5.} Rxb7 23. e5 Rxb1 24. Qxb1 dxe5 25. Nxe5 (25. Rxe5 Qa7 $16)) 22... Qd7 $2 {[%emt 0:07:15] This move loses the game for Black.} (22... Nxe4 $14 23. Rfe1 Nxd2 24. Rxe7 Nxb3 25. Rxe8+ Rxe8) 23. Qb6 {[%emt 0:06:24]} Re7 {[%emt 0:03:17] Inhibits e5.} (23... Nxe4 {might work better.} 24. Bf4 (24. Qxa6 Nxd2 25. Nxd2 Bc3 $16) 24... Bc3) 24. e5 $18 {[%emt 0:11:53]} ({Resist} 24. Qxa6 Ne8 25. e5 (25. Bg5 f6 $16) 25... dxe5 $18) 24... dxe5 {[%emt 0:00:32]} 25. Bg5 {[%emt 0:10:19]} ({Weaker is} 25. Qxc5 Rxb7 26. Rxb7 Qxb7 $18) 25... Rxb7 {[%emt 0:00:17]} 26. Qxa6 {[%emt 0:01:32]} (26. Qxc5 Re8 27. Nd2 Rc7 $16) 26... Ra7 {[%emt 0:00:17]} 27. Qb6 {[%emt 0:00:58]} Qf5 {[%emt 0:03:11] [#]} (27... e4 28. Nd2 (28. Bxf6 Bxf6 29. Qxf6 exf3 $18) 28... Ra2 29. Qxc5 h6) 28. Qb8+ {[%emt 0:01:38]} Bf8 {[%emt 0:01:37]} 29. Rb6 {[%emt 0:01:17]} Ne4 {[%emt 0:02:07]} 30. Bh6 {[%emt 0:01:04] Weighted Error Value: White=0.21 (precise) /Black=0.61} 1-0

[Event "German Bundesliga 2021-22"]
[Site "Germany"]
[Date "2022.04.30"]
[Round "5.13"]
[White "Fruebing, Stefan"]
[Black "Kozul, Zdenko"]
[Result "0-1"]
[ECO "B42"]
[WhiteElo "2374"]
[BlackElo "2619"]
[Annotator "TA"]
[PlyCount "64"]
[EventDate "2022.03.05"]
[EventType "team-tourn"]
[EventCountry "GER"]
[SourceTitle "playchess.com"]
[Source "ChessBase"]
[SourceQuality "1"]
[TimeControl "40/5400+30:1800+30"]

{[%evp 12,64,54,30,42,38,47,14,20,18,25,18,27,-20,0,-16,-23,-27,0,0,-7,-12,0,-135,-61,-66,-66,-64,-54,-72,-66,-103,-66,-78,-68,-89,-83,-384,-377,-402,-398,-367,-218,-295,-313,-308,-302,-348,-326,-364,-366,-1386,-1334,-1616,-1445]} 1. e4 {[%emt 0:00:00]} c5 {[%emt 0:00:00]} 2. Nf3 {[%emt 0:00:00]} e6 {[%emt 0:00:00]} 3. d4 {[%emt 0:00:00]} cxd4 {[%emt 0:00:00]} 4. Nxd4 {[%emt 0:00:00]} a6 {[%emt 0:00:00]} 5. Bd3 {[%emt 0:00:00]} d6 {[%emt 0:00:00]} 6. O-O {[%emt 0:00:00]} Nf6 {[%emt 0:00:00]} 7. Qe2 {[%emt 0:00:00]} Nbd7 {[%emt 0:00:00] B42: Sicilian: Kan Variation: 5 Bd3.} 8. c4 {[%emt 0:00:00]} g6 {[%emt 0:00:00]} 9. b3 {[%emt 0:00:00]} Bg7 {[%emt 0:01:00] The position is equal.} 10. Bb2 {[%emt 0:00:00]} O-O {[%emt 0:00:30]} 11. Nc3 {[%emt 0:01:00]} Re8 {[%emt 0:15:30][%cal Od6d5] [#]} 12. f4 $146 {[%emt 0:19:30]} (12. Rfe1 {is superior.}) ({Predecessor:} 12. Rad1 b6 13. Bb1 Bb7 14. Nf3 Qc7 15. Qd2 Bf8 16. Rfe1 Rad8 17. Qd4 Bc6 18. h3 {1-0 (35) Gelashvili,T (2612)-Arsovic,G (2469) Kavala 2008}) 12... Qb6 {[%emt 0:23:30]} 13. Na4 {[%emt 0:01:30]} Qa7 {[%emt 0:00:00] White must now prevent ...e5.} 14. Kh1 $1 {[%emt 0:01:30]} e5 {[%emt 0:00:00]} 15. fxe5 {[%emt 0:16:30]} Nxe5 {[%emt 0:00:30]} 16. Rae1 {[%emt 0:05:30]} (16. Nc2 {keeps more tension.} b5 17. cxb5 Bg4 18. Qd2) 16... Bd7 {[%emt 0:09:30]} 17. Bc2 {[%emt 0:05:30] [#]} (17. Nf3 $11) 17... Bxa4 {[%emt 0:04:30]} ({Better is} 17... b5 $1 $17 {[%cal Rb5a4]} 18. cxb5 axb5 19. Nxb5 Qb8) 18. bxa4 $15 {[%emt 0:00:30]} Qc5 {[%emt 0:04:30]} 19. Nf3 $1 {[%emt 0:17:30]} Nfd7 {[%emt 0:05:30] Black is much more active. Pair of Knights!} ({Much worse is} 19... Qxc4 20. Nxe5 Qxe2 21. Rxe2 $11) 20. Bb3 {[%emt 0:03:30]} Re7 {[%emt 0:05:30]} 21. Rd1 {[%emt 0:05:30]} Rae8 {[%emt 0:04:30]} 22. Rd5 {[%emt 0:04:33]} Qc7 {[%emt 0:00:30]} 23. Ba3 {[%emt 0:04:06]} Nc5 {[%emt 0:01:30]} 24. Rfd1 $2 {[%emt 0:04:29][%mdl 8192] Now White is beyond hope.} (24. Nxe5 $17 Rxe5 25. Qd1) 24... Ng4 $19 {[%emt 0:03:30]} 25. Bxc5 {[%emt 0:05:07]} dxc5 {[%emt 0:00:30]} 26. Bc2 {[%emt 0:00:00]} Nf6 {[%emt 0:00:30]} (26... Bd4 $142 {Hoping for ...Nf2+.} 27. Rf1 f5) 27. Rd6 {[%emt 0:02:25]} Nxe4 {[%emt 0:01:30]} 28. Bxe4 {[%emt 0:00:10]} Rxe4 {[%emt 0:00:00]} 29. Qd3 {[%emt 0:00:19]} Bd4 {[%emt 0:06:22]} 30. Rd5 {[%emt 0:00:14]} Re2 {[%emt 0:00:18] ...R8e3 is the strong threat.} 31. Qa3 {[%emt 0:04:09]} (31. Qb1) 31... R8e3 {[%emt 0:01:17]} 32. Qc1 {[%emt 0:00:15] [#]} Rxf3 $1 {[%emt 0:00:57][%mdl 512] Weighted Error Value: White=0.76/Black=0.14 (very precise)} 0-1

[Event "German Bundesliga 2021-22"]
[Site "Germany"]
[Date "2022.04.30"]
[Round "5.14"]
[White "Braun, Arik"]
[Black "Heinemann, Thies"]
[Result "1-0"]
[ECO "A45"]
[WhiteElo "2587"]
[BlackElo "2495"]
[Annotator "TA"]
[PlyCount "109"]
[EventDate "2022.03.05"]
[EventType "team-tourn"]
[EventCountry "GER"]
[SourceTitle "playchess.com"]
[Source "ChessBase"]
[SourceQuality "1"]
[TimeControl "40/5400+30:1800+30"]

{[%evp 12,109,10,9,16,13,10,4,8,0,0,0,0,0,0,0,0,0,0,0,0,0,0,0,0,-25,0,-7,0,7,17,6,22,11,11,11,12,0,24,24,19,37,17,13,17,17,13,13,13,13,13,13,13,13,13,13,13,13,62,13,13,13,67,68,174,85,75,85,147,154,154,154,154,151,133,90,168,132,192,193,336,333,334,345,29957,29958,29957,29956,29946,29946,29947,7482,10406,5497,29975,29976,29978,29979,29978,29979]} 1. d4 {[%emt 0:00:00]} Nf6 {[%emt 0:00:00]} 2. Bg5 {[%emt 0:00:00]} e6 {[%emt 0:00:00]} 3. Nd2 {[%emt 0:00:00]} c5 {[%emt 0:00:00]} 4. e3 {[%emt 0:00:00]} h6 {[%emt 0:03:00]} 5. Bh4 {[%emt 0:00:00]} cxd4 {[%emt 0:00:24]} 6. exd4 {[%emt 0:00:00]} Be7 {[%emt 0:00:24]} 7. Ngf3 {[%emt 0:00:00]} b6 {[%emt 0:00:50] A46: 1 d4 Nf6 2 Nf3 e6: Torre, London and Colle Systems.} 8. Bd3 {[%emt 0:00:00]} Ba6 {[%emt 0:02:36]} 9. Bxf6 $5 {[%emt 0:07:58][%mdl 4] Exploring less charted territory.} Bxf6 {[%emt 0:00:46] [#] The position is equal.} 10. Qe2 $146 {[%emt 0:01:54]} ({Predecessor:} 10. Ne4 O-O 11. O-O Bxd3 12. Qxd3 Nc6 13. d5 Bxb2 14. dxc6 Bxa1 15. Rxa1 dxc6 16. Qe2 {0-1 (28) Lipka,J (2426)-Stohl,I (2534) Czech Republic 2001}) 10... Bxd3 {[%emt 0:02:53]} 11. Qxd3 {[%emt 0:00:05]} Nc6 {[%emt 0:01:48]} 12. c3 {[%emt 0:01:51]} d5 {[%emt 0:01:20]} 13. Nb3 {[%emt 0:05:08][%cal Bd2b3,Bb3c1,Bc1d3,Bd3c5][%mdl 32]} Qc7 {[%emt 0:02:37]} 14. h4 {[%emt 0:03:57]} h5 {[%emt 0:06:01]} 15. g3 {[%emt 0:00:27]} g6 {[%emt 0:06:49]} 16. O-O {[%emt 0:01:45]} Ne7 {[%emt 0:05:45]} 17. Qe2 {[%emt 0:07:09]} Nf5 {[%emt 0:04:56]} 18. Nc1 {[%emt 0:00:50]} O-O {[%emt 0:02:15]} (18... Rg8 $5 {[%cal Rg6g5]}) 19. Nd3 {[%emt 0:00:26]} b5 {[%emt 0:05:37]} 20. a4 {[%emt 0:08:11]} a6 {[%emt 0:27:58]} 21. Rfc1 {[%emt 0:11:46]} Qd6 {[%emt 0:02:41][%cal Ob5b4]} 22. axb5 {[%emt 0:08:44]} axb5 {[%emt 0:00:14]} 23. b4 {[%emt 0:00:20]} Qc7 {[%emt 0:04:35] White must now prevent ...Rxa1.} 24. Nc5 {[%emt 0:01:23]} Nd6 {[%emt 0:01:20]} 25. Ra2 {[%emt 0:03:43]} Rxa2 {[%emt 0:05:01]} 26. Qxa2 {[%emt 0:00:06]} Ne4 {[%emt 0:03:09]} 27. Qe2 {[%emt 0:09:46][%csl LRb5,LRe4]} Qc6 {[%emt 0:01:58]} 28. Qe1 {[%emt 0:00:21]} Bg7 $1 {[%emt 0:03:09]} 29. Ra1 {[%emt 0:03:48]} Ra8 {[%emt 0:01:04] Inhibits Ra6.} 30. Rxa8+ Qxa8 {[%emt 0:00:01]} 31. Nxe4 {[%emt 0:02:27]} dxe4 {[%emt 0:00:05]} 32. Ng5 {[%emt 0:00:14]} e5 {[%emt 0:01:27]} 33. dxe5 {[%emt 0:00:19]} Bxe5 {[%emt 0:01:22]} 34. Nxe4 {[%emt 0:00:23]} Qd5 {[%emt 0:01:14]} (34... Qc6 $11) 35. Nc5 {[%emt 0:04:52]} (35. Ng5 $1 $14) 35... Kh7 {[%emt 0:01:27]} 36. Qe3 {[%emt 0:01:53]} Bg7 {[%emt 0:00:58]} (36... Kg8 $11) 37. Ne4 $14 {[%emt 0:00:56]} Qc6 {[%emt 0:01:24]} (37... Kg8 $14) 38. Qd3 {[%emt 0:00:51]} (38. Ng5+ $18 {and White stays clearly on top.} Kg8 39. Qe7) 38... Be5 $16 {[%emt 0:00:31]} 39. Nc5 {[%emt 0:01:26]} Kg7 {[%emt 0:01:06]} (39... Kg8 $142) 40. c4 $1 {[%emt 0:01:46]} bxc4 {[%emt 0:00:38]} 41. Qxc4 {[%emt 0:30:06]} Qd6 {[%emt 0:00:00]} 42. Kg2 {[%emt 0:00:00] White is more active.} Bd4 {[%emt 0:00:00]} 43. Nd3 {[%emt 0:00:00]} Kg8 {[%emt 0:00:00]} (43... Qd7 $16) 44. Nf4 {[%emt 0:00:00][%cal Of4g6] aiming for Nxg6!} Kg7 {[%emt 0:00:00]} (44... Ba7 $16 {was necessary.} 45. Qc8+ Kg7) 45. b5 $1 $18 {[%emt 0:00:00][%cal Bb4b5,Bb5b6][%mdl 32] And now Nd5 would win.} Qe5 {[%emt 0:05:17]} (45... Qd7 {was worth a try.} 46. Qd5 Qa7) 46. Qd5 {[%emt 0:00:00]} Qf6 {[%emt 0:04:05] [#]} 47. Qc6 {[%emt 0:00:00]} Ba7 $2 {[%emt 0:06:18]} (47... Be5 $18 48. Nd5 Qf5) 48. Qxf6+ {[%emt 0:00:00]} Kxf6 {[%emt 0:00:01] KB-KN} 49. b6 {[%emt 0:00:00]} Bb8 {[%emt 0:00:07]} 50. Nd5+ {[%emt 0:00:00]} Ke6 {[%emt 0:01:42] [#]} 51. Nb4 $1 {[%emt 0:00:00] b7 would kill now.} Kd7 {[%emt 0:00:29]} 52. Na6 {[%emt 0:00:00]} Kc8 {[%emt 0:00:12]} 53. Nxb8 {[%emt 0:00:00] White mates.} Kxb8 {[%emt 0:00:06]} 54. Kf3 {[%emt 0:00:00]} Kb7 {[%emt 0:00:38]} 55. Ke4 {[%emt 0:00:00] Weighted Error Value: White=0.06 (flawless) /Black=0.46} 1-0